{"text_format":"3","workbook":"xlsx","n_sheets":5,"sheets":["清单编制说明","清单","工程量清单","定额计价程序表","安全文明施工措施费工作清单"],"not_rendered":{"external_links":179,"defined_names":3000},"read":"whole","date_system":"1900"}

{"sheet":"清单编制说明","index":0,"n_rows":32,"n_cols":2,"rows_kept":32,"merged":[[0,0,0,1],[0,2,0,3],[0,4,0,5],[0,6,0,7],[0,8,0,9],[0,10,0,11],[0,12,0,13],[0,14,0,15],[0,16,0,17],[0,18,0,19],[0,20,0,21],[0,22,0,23],[0,24,0,25],[0,26,0,27],[0,28,0,29],[0,30,0,31],[0,32,0,33],[0,34,0,35],[0,36,0,37],[0,38,0,39],[0,40,0,41],[0,42,0,43],[0,44,0,45],[0,46,0,47],[0,48,0,49],[0,50,0,51],[0,52,0,53],[0,54,0,55],[0,56,0,57],[0,58,0,59],[0,60,0,61],[0,62,0,63],[0,64,0,65],[0,66,0,67],[0,68,0,69],[0,70,0,71],[0,72,0,73],[0,74,0,75],[0,76,0,77],[0,78,0,79],[0,80,0,81],[0,82,0,83],[0,84,0,85],[0,86,0,87],[0,88,0,89],[0,90,0,91],[0,92,0,93],[0,94,0,95],[0,96,0,97],[0,98,0,99],[0,100,0,101],[0,102,0,103],[0,104,0,105],[0,106,0,107],[0,108,0,109],[0,110,0,111],[0,112,0,113],[0,114,0,115],[0,116,0,117],[0,118,0,119],[0,120,0,121],[0,122,0,123],[0,124,0,125],[0,126,0,127],[0,128,0,129],[0,130,0,131],[0,132,0,133],[0,134,0,135],[0,136,0,137],[0,138,0,139],[0,140,0,141],[0,142,0,143],[0,144,0,145],[0,146,0,147],[0,148,0,149],[0,150,0,151],[0,152,0,153],[0,154,0,155],[0,156,0,157],[0,158,0,159],[0,160,0,161],[0,162,0,163],[0,164,0,165],[0,166,0,167],[0,168,0,169],[0,170,0,171],[0,172,0,173],[0,174,0,175],[0,176,0,177],[0,178,0,179],[0,180,0,181],[0,182,0,183],[0,184,0,185],[0,186,0,187],[0,188,0,189],[0,190,0,191],[0,192,0,193],[0,194,0,195],[0,196,0,197],[0,198,0,199],[0,200,0,201],[0,202,0,203],[0,204,0,205],[0,206,0,207],[0,208,0,209],[0,210,0,211],[0,212,0,213],[0,214,0,215],[0,216,0,217],[0,218,0,219],[0,220,0,221],[0,222,0,223],[0,224,0,225],[0,226,0,227],[0,228,0,229],[0,230,0,231],[0,232,0,233],[0,234,0,235],[0,236,0,237],[0,238,0,239],[0,240,0,241],[0,242,0,243],[0,244,0,245],[0,246,0,247],[0,248,0,249],[0,250,0,251],[0,252,0,253],[0,254,0,255]]}
["广昌保障房配套基础设施项目施工总承包--交通、安监工程专业分包"]
["序号","清单编制说明"]
["一","清单编制范围及依据"]
[1.1,"工程概况：三条市政路及配套设施，具体如下：（1）均昌路：均昌路路线起点与珠海大道辅道相接，终点与在建的广南路相接，道路全长约468.147米。（2）广湾街：广湾街路线起点与在建的广南路相接，终点与安民街相接，道路全长约549.188米。（3）新翠路：新翠路路线起点与在建的洪湾大道相接，终点位于广昌小学处，道路全长约968.185 米。以上三条道路的主要建设内容包括：道路工程、市政给排水工程、照明工程以及电缆沟、通信沟及排洪渠、连接变电站的临时道路等配套附属设施。道路等级：城市支路。"]
[1.2,"项目承包方式：劳务分包□；专业分包þ；其他□。"]
[1.3,"项目承揽范围：全线交通标线、标志、警示桩，安监前端设备、传输系统、后端系统、防雷接地、拆除等工程施工。包含本合同段设计图纸要求必需完成的全部工序；具体以招标文件、设计图纸及甲方要求为准。"]
[1.4,"清单编制依据：                                                                                                                                                                                                                     （1）《建设工程工程量清单计价规范》GB50500-2013及附录；                                                                                                                                                                                                  \n（2）国家或省级、行业建设主管部门颁发的计价依据和办法；                                                                                                                    \n（3）建设工程设计文件；\n（4）与建设工程项目有关的标准、规范、技术资料；\n（5）招标文件及其补充通知、答疑纪要；\n（6）施工现场情况、工程特点及常规施工方案；                                                                                                                                                                                                                                                   \n（7）其他相关资料。"]
[1.5,"本工程量清单包括清单编制说明、清单、工程量清单、定额计价程序表、安全文明施工措施费工作清单等，上述内容均构成合同不可分割的一部分。"]
[1.6,"清单未提及的工作内容应包含但不限于：相关规范、质量通病、招标文件、施工合同、图纸要求、现场施工条件、施工方式、配合及响应政府号召的相关工作。"]
["二","清单综合单价构成及说明"]
["2.1","清单综合单价包括完成一个约定计量单位的清单项目所需的人工费、材料费（甲供材料以外的所有材料费用）、施工机具使用费、机械进出场及安拆费用、保险费（施工人员团体意外伤害保险）、管理费、利润、措施费用（详见措施费用明细）、其他费用（详见其他费用明细）、税金（按合同清单约定税率）、包含规范和图纸要求的检测频率和检测要求进行原材送检和现场实体检测，并提供合格的报告。作为一个有经验的承包商对项目充分了解及对风险充分估计后所需承担的风险费用。"]
["2.2","措施项目费的调整： ①结算时，若合同承包工程 项目（即图纸或预算标底项目）范围内工程量增加或设计变更而发生的相应项目措施费的，按原取费标准计算。 ②若招标人在招标时提供的工程量清单有重复计算的项目的或因为 非中标人原因，招标人删减了预算中的原定工作或项目，结算时该项工作对应的措施费一并扣除。 ③若合同承包工程项目（即图纸或预算标底项目）范围外增加或设计变更而发生的相应项目措施费 的，若以工程量计算的措施项目费，则予以调整，按招标控制价预算编制原则计算，并按中标降幅下浮。如以项计算的措施项目费，则不予调整。④由于政策调整导致项目终止政策调整或其他原因导 致工程规模缩减，措施费按实调整。⑤如若发生工期严重压缩，甲乙双方另行协商赶工措施费，原则上不超过业主确认的赶工措施费。"]
["2.3","清单综合单价包含其他费用明细：材料试验检验费（甲供材料以外的所有材料的试验检验费用）、配合费（包括甲乙双方配合及与甲方其他分包之间的配合费用）、材料保管费（包括移交给乙方施工的甲供材料）、合同约定工期内合理的赶工费用。"]
["2.4","施工作业中若发生相关水电费，结算时扣除方式：①安装水电表的，按照水电表按实扣除；②没安装水电表的，工程结算前基坑支护工程、桩基础工程按合同暂定总价的1.5%、除此之外的其他工程按合同暂定总价的0.5%先行计算扣除，工程结算时基坑支护工程、桩基础工程按结算总价的1.5%、除此之外的其他工程按结算总价的0.5%予以调整，不足100元按照扣除100元计算。"]
["2.5","关于工程保险的特别约定：该专用条款中约定投保的所有保险内容，有关费用已包含在合同价款中，均由乙方购买，甲方不再额外支付，保险有效期至工程竣工验收合格交付发包人使用为止。若是必须以甲方名义购买的，甲方购买保险的费用从当期进度款中扣回；若可由乙方代买的，由乙方按期足额购买，甲方配合。"]
["三","清单计价计量规则"]
[3.1,"本合同的工程量计算规则以本合同《工程量清单》中的工程量计量规则为准，未描述内容则参照《建设工程工程量清单计价规范》GB50500-2013及附录执行，如与本合同《工程量清单》中的工程量计量规则矛盾，则以本合同《工程量清单》中的工程量计量规则为准。"]
[3.2,"涉及到房屋建筑与装饰装修等工程的项目，按国家标准《房屋建筑与装饰工程计量规范》的相应项目执行；涉及到电气、给排水、消防等安装工程的项目，按照国家标准《通用安装工程计量规范》的相应项目执行；涉及到道路、室外给排水等工程的项目，按国家标准《市政工程计量规范》的相应项目执行。"]
["3.3","同样工作内容的清单，清单综合单价有高低时，按照综合单价低的原则结算。"]
["3.4","结算按实际发生的有效工程量计算，工程量必须由承包方签字确认。"]
["四","清单材料管理"]
[4.1,"本次招标无甲供材，一切与乙方承包范围相关的材料均由乙方负责采购或租赁，其有关费用已包括在清单综合单价内。"]
["4.2","由乙方负责采购或租赁的材料设备由乙方按要求负责送检，相应检验费用已包含在清单综合单价中。由乙方负责采购或租赁的材料设备须符合甲方的品牌、品质要求，进场使用前须按甲方要求，接收检查，并提供材料设备相应的合格证明材料。"]
["五","增值税说明"]
["5.1","本工程需开具增值税专用发票，税率 9 %，城建税、教育附加税等其他税费均已在价税分离中不含税部分综合考虑。若后期国家或地区增值税税率发生调整，则保持不含税综合单价不变，税金按政策进行相应调整（无论调增还是调减）。"]
["六","其他说明"]
[6.1,"报价前或签订本合同前，承包人已详细阅读并了解本说明、勘探报告、地下管线、施工用电、临时设施、现场情况等资料及项目所在地的政策环境和市场环境，并自行至工地现场踏勘，承包人因不了解上述资料或现场而提出的索赔将不予受理。"]
["6.2","本清单项目名称对工作内容的描述是简单性和概括性的，并非完整无缺，其它未提及的必需工序、辅助工作等均已综合考虑在本项目各综合单价中。清单中未开列或未有说明的费用，但合同约定为本工程工作内容及工程范围的，由投标单位综合考虑在已列出的清单项目中，结算时不予计算。"]
["6.3","投标人投标时除提供投标报价单外，还须提供报价组成文件作为标书的一部分，一般情况下需提供易达计价文件，如无法使用易达软件计价的情况，按《分包报价综合单价分析表》样表提供组价文件。"]
["6.4","投标人为完成图纸及分部分项工程量清单的内容，按国家现行有关建筑工程规范、规程及广东省和珠海市质量通病防治措施要求，为保证工程的质量和安全，必须采取的特殊措施以及配套完成的工作内容所需的费用。"]
["6.5","不论投标人是否考虑及如何填报报价，招标人均认为投标人已考虑下述情况的风险费用，结算时不再调整:  1、安全生产、文明施工所需的设施费由投标人负责；各类机械的进退场费、工程完工后的清场费用；通电验收等费用； 2、因施工用重型设备而导致周边道路的损坏与修复而产生的费用，因施工影响周边交通而发生的费用；3、施工现场的现 有设施及构筑物，中标人须采取保护措施，如有损毁须恢复原貌，其保护措施费及恢复费用由中标人 承担； 4、中标人对已完工的工程（包括水、电等成品及半成品），必须加以保护，因施工造成损 坏的须恢复原状。其保护费用及修复费用，不予调整； 5、凡与本工程实施期内同步交叉作业，投标人应充分考虑其他交叉作业项目所产生的干扰和影响；"]
["6.6","本项目不接受不平衡报价。"]

{"sheet":"清单","index":1,"n_rows":6,"n_cols":7,"rows_kept":6,"merged":[[0,0,0,6],[1,0,1,6],[2,0,2,6],[3,0,3,3],[3,4,3,6],[5,0,6,0],[5,1,6,1],[5,2,6,2],[5,3,6,3],[5,4,6,4],[5,5,6,5],[5,6,6,6]]}
[{"$f":"清单编制说明!A1","v":"广昌保障房配套基础设施项目施工总承包--交通、安监工程专业分包"}]
["招标预算价清单"]
["工程名称：广昌保障房配套基础设施项目施工总承包--交通、安监工程专业分包工程"]
["项目概况：暂定合同价=884032.08元×（1-投标人报价下浮率）×（1+ 9 %)"]
["序号","项目名称","项目特征描述","计量\n单位","数量","投标价格","备注"]
[1,{"$f":"A1","v":"广昌保障房配套基础设施项目施工总承包--交通、安监工程专业分包"},"1、工程内容：全线交通标线、标志、警示桩，安监前端设备、传输系统、后端系统、防雷接地、拆除等工程施工。包含本合同段设计图纸要求必需完成的全部工序；具体以招标文件、设计图纸及甲方要求为准。\n2、计价清单与定额及争议解决办法：\n（1）采用清单计价，执行国家《建设工程工程量清单计价规范》（GB50500-2013）；\n（2）《广东省市政工程综合定额2018》、《广东省房屋建筑与装饰工程综合定额2018》、《广东省安装工程综合定额2018》、《广东省园林绿化工程综合定额2018》、《广东省建筑与装饰修缮工程综合定额(2012)》、《广东省安装修缮工程综合定额(2012)》、《广东省市政修缮工程综合定额(2012)》、《广东省建设工程施工机具台班费用编制规则（2018）》等广东省对应专业的计价依据和办法及珠海市相关规定；\n（3）争议解决办法以造价站或政府相关部门答疑文件为准；                             \n3、人工费：默认为机上人工230元/工日及人工费系数1计入，如果施工期间人工费有调整，人工价发生变化且符合省级或行业建设主管部门发布的人工费调整规定，合同当事人应按省级或行业建设主管部门或其授权的工程造价管理机构发布的人工费等文件调整合同价格。              \n4、材料及机械价格：按2025年6期《珠海工程造价信息》作为基准价，有区间价格的按低值计取；施工期间钢材、商品砼、砂浆、砌块、预制构件(预制管桩、叠合楼板、预制楼梯、预制墙板等)、水泥、管材(含管件)、电线电缆、沥青砼、砂、碎石、石屑(石粉)、柴油、竹木板、防水胶合板、木枋、玻璃、铝合金价格价格(施工期的造价信息各月的加权平均值)波动超过基准价士5%时，结算时仅调整超出士5%以外部分的差价，其他材料均不调价。材料价差只计取税金，不计取其他任何费用。\n5、取费标准：\n（1）管理费按二类地区计取，\n（2）绿色施工安全防护措施费（按系数计取的包括包括绿色施工、临时设施、安全施工和用工实名管理）：按广东省计价办法执行，以分部分项的人工费+机具费为计算基数,建筑工程为19%,安装工程为35.77%,市政道路管网工程为16.5%,市政桥涵隧道工程为 14.5%,园林绿化工程为10%，\n（3）预算包干费以分部分项人工费+机具费为计算基数,建筑工程为7%,安装工程为10%,市政工程为6%,园林绿化工程为6%，\n（4）利润以分部分项人工费+机具费为计算基数,建筑工程为20%,安装工程为20%,市政工程为15%,园林绿化工程为18%；\n（5）增值税税率：9%；如有新政策则按新政策调整；\n（6）不取费项目：工程排污费、防洪工程维护费及危险作业意外伤害保险费；\n6、审核软件：Excel表格（算量）、易达（计价）；                                           \n7、付款方式：预算审核政府相关部门未审批前，计价方式按第“2~5”点执行，政府相关部门审批后按实调整支付清单；\n8、最终结算价(含   %增值税专用发票)=(财审审定不含税结算价x(1-投标价下浮费率)x对应的税率。","项",{"v":1,"d":"1.00"},"下浮 xx.xx %"]

{"sheet":"工程量清单","index":2,"n_rows":86,"n_cols":10,"rows_kept":86,"merged":[[0,0,0,9],[1,0,1,9],[3,0,4,0],[3,1,4,1],[3,2,4,2],[3,3,4,3],[3,4,4,4],[3,5,4,5],[3,6,4,6],[3,7,4,7],[3,8,4,8],[3,9,4,9]]}
[{"$f":"清单编制说明!A1","v":"广昌保障房配套基础设施项目施工总承包--交通、安监工程专业分包"}]
["工程量暂定清单"]
[{"$nulls":8},"单位：元"]
["序号","项目名称","项目特征描述","计量规则","甲供材/机","单位","工程量\n（暂定）","不含税 综合单价","合价","备注"]
[]
[null,"【交通工程】",null,null,"",""]
[null,"交通标线",""]
[1,"高亮干湿态反光标线","1、材料品种：高亮干湿态反光涂料\n2、形式：车行道线\n2、工艺：热熔式\n3、线型：线宽综合考虑，线厚2.5mm\n4、综合考虑按图纸、规范、招标文件要求而实施、完成这项工程的一切有关费用","按竣工图图示尺寸且验收合格为准","/","m2","921.423",40.17,{"$f":"ROUND(H8*G8,2)","v":37013.56}]
[2,"高亮干湿态反光横道线","1、材料品种：高亮干湿态反光涂料\n2、形式：人行横道线\n2、工艺：热熔式\n3、线型：线宽400mm，线厚2.5mm\n4、综合考虑按图纸、规范、招标文件要求而实施、完成这项工程的一切有关费用","按竣工图图示尺寸且验收合格为准","/","m2","543.514",45.49,{"$f":"ROUND(H9*G9,2)","v":24724.45}]
[3,"高亮干湿态反光标记","1、材料品种：高亮干湿态反光涂料\n2、类型：直行、转弯箭头\n3、规格尺寸：长4.5m，线厚2.5mm\n4、综合考虑按图纸、规范、招标文件要求而实施、完成这项工程的一切有关费用","按竣工图图示尺寸且验收合格为准","/","m2","126.380",53.54,{"$f":"ROUND(H10*G10,2)","v":6766.39}]
[4,"高亮干湿态反光标记","1、材料品种：热熔型反光环保涂料\n2、类型：让行三角形\n3、规格尺寸：高3m，线厚2.5mm\n4、综合考虑按图纸、规范、招标文件要求而实施、完成这项工程的一切有关费用","按竣工图图示尺寸且验收合格为准","/","m2","4.520",48.5,{"$f":"ROUND(H11*G11,2)","v":219.22}]
[null,"交通标志","",null,null,"","",""]
[5,"标志板（正方形80×80cm，V类反光膜，3mm厚铝合金板）","1、名称：正方形标志牌\n2、规格：边长80cm\n3、材质：V类反光膜，3mm厚铝合金板\n4、综合考虑按图纸、规范、招标文件要求而实施、完成这项工程的一切有关费用","按竣工图图示尺寸且验收合格为准","/","块","5.000",664.91,{"$f":"ROUND(H13*G13,2)","v":3324.55}]
[6,"标志板（正方形80×80cm，V类反光膜，3mm厚铝合金板）-利旧","1、名称：正方形标志牌\n2、规格：边长80cm\n3、材质：V类反光膜，3mm厚铝合金板\n4、综合考虑按图纸、规范、招标文件要求而实施、完成这项工程的一切有关费用","按竣工图图示尺寸且验收合格为准","/","块","1.000",273.03,273.03]
[7,"路名牌（长方形150×45cm，V类反光膜，8mm厚铝合金板）","1、名称：路名牌\n2、规格：边长150×45cm\n3、材质：V类反光膜，8mm厚铝合金板\n4、综合考虑按图纸、规范、招标文件要求而实施、完成这项工程的一切有关费用","按竣工图图示尺寸且验收合格为准","/","块","22.000",686.34,15099.48]
[8,"标志板（圆形，直径80cm，V类反光膜，3mm厚铝合金板）","1、名称：圆形标志牌\n2、规格：直径80cm\n3、材质：V类反光膜，3mm厚铝合金板\n4、综合考虑按图纸、规范、招标文件要求而实施、完成这项工程的一切有关费用","按竣工图图示尺寸且验收合格为准","/","块","17.000",580.66,9871.22]
[9,"标志板（圆形，直径80cm，V类反光膜，3mm厚铝合金板）-利旧","1、名称：圆形标志牌\n2、规格：直径80cm\n3、材质：V类反光膜，3mm厚铝合金板\n4、综合考虑按图纸、规范、招标文件要求而实施、完成这项工程的一切有关费用","按竣工图图示尺寸且验收合格为准","/","块","5.000",273.03,1365.15]
[10,"标志板（三角形，边长90cm，V类反光膜，超强级，3mm厚铝合金板）","1、名称：三角形标志牌\n2、规格：边长90cm\n3、材质：V类反光膜，3mm厚铝合金板\n4、综合考虑按图纸、规范、招标文件要求而实施、完成这项工程的一切有关费用","按竣工图图示尺寸且验收合格为准","/","块","12.000",487.79,5853.48]
[11,"标志板（三角形，边长90cm，V类反光膜，超强级，3mm厚铝合金板）-利旧","1、名称：三角形标志牌\n2、规格：边长90cm\n3、材质：V类反光膜，3mm厚铝合金板\n4、综合考虑按图纸、规范、招标文件要求而实施、完成这项工程的一切有关费用","按竣工图图示尺寸且验收合格为准","/","块","6.000",487.79,2926.74]
[12,"标志板（长方形120×150cm，V类反光膜，3mm厚铝合金板）","1、名称：长方形标志牌\n2、规格：长方形120×150cm\n3、材质：V类反光膜，3mm厚铝合金板\n4、综合考虑按图纸、规范、招标文件要求而实施、完成这项工程的一切有关费用","按竣工图图示尺寸且验收合格为准","/","块","10.000",1538.72,{"v":15387.2,"d":"15387.20"}]
[13,"标志板（长方形400×240cm，V类反光膜，3mm厚铝合金板）","1、名称：长方形标志牌\n2、规格：边长400×240cm\n3、材质：V类反光膜，3mm厚铝合金板\n4、综合考虑按图纸、规范、招标文件要求而实施、完成这项工程的一切有关费用","按竣工图图示尺寸且验收合格为准","/","块","3.000",6972.91,20918.73]
[14,"标杆（φ89*4*3500mm）","1、类型：单柱式标志杆\n2、材质：钢管立柱\n3、规格尺寸：Φ89×4mm×3500mm\n4、基础、垫层材料品种、厚度：C20素砼垫层，C25商品混凝土基础\n5、油漆品种：喷涂白色环氧富锌漆2层\n6、接地地级：热镀锌角钢接地极∠50*50*5，L=2500mm\n7、土方：土方开挖回填，余方运到指定地点\n8、结构及做法：按设计图纸\n9、综合考虑按图纸、规范、招标文件要求而实施、完成这项工程的一切有关费用","按竣工图图示尺寸且验收合格为准","/","根",3,886.75,2660.25]
[15,"标杆（φ89*4*3476mm）","1、类型：单柱式标志杆\n2、材质：钢管立柱\n3、规格尺寸：Φ89×4mm×3476mm\n4、基础、垫层材料品种、厚度：C20素砼垫层，C25商品混凝土基础\n5、油漆品种：喷涂白色环氧富锌漆2层\n6、接地地级：热镀锌角钢接地极∠50*50*5，L=2500mm\n7、土方：土方开挖回填，余方运到指定地点\n8、结构及做法：按设计图纸\n9、综合考虑按图纸、规范、招标文件要求而实施、完成这项工程的一切有关费用","按竣工图图示尺寸且验收合格为准","/","根",16,885.06,14160.96]
[16,"标杆（φ89*4*3450mm）","1、类型：单柱式标志杆\n2、材质：钢管立柱\n3、规格尺寸：Φ89×4mm×3450mm\n4、基础、垫层材料品种、厚度：C20素砼垫层，C25商品混凝土基础\n5、油漆品种：喷涂白色环氧富锌漆2层\n6、接地地级：热镀锌角钢接地极∠50*50*5，L=2500mm\n7、土方：土方开挖回填，余方运到指定地点\n8、结构及做法：按设计图纸\n9、综合考虑按图纸、规范、招标文件要求而实施、完成这项工程的一切有关费用","按竣工图图示尺寸且验收合格为准","/","根",19,884.2,{"v":16799.8,"d":"16799.80"}]
[17,"标杆（φ89*4*4150mm）","1、类型：单柱式标志杆\n2、材质：钢管立柱\n3、规格尺寸：Φ89×4mm×4150mm\n4、基础、垫层材料品种、厚度：C20素砼垫层，C25商品混凝土基础\n5、油漆品种：喷涂白色环氧富锌漆2层\n6、接地地级：热镀锌角钢接地极∠50*50*5，L=2500mm\n7、土方：土方开挖回填，余方运到指定地点\n8、结构及做法：按设计图纸\n9、综合考虑按图纸、规范、招标文件要求而实施、完成这项工程的一切有关费用","按竣工图图示尺寸且验收合格为准","/","根",10,945.03,{"v":9450.3,"d":"9450.30"}]
[18,"标杆（φ89*4*4300mm）","1、类型：单柱式标志杆\n2、材质：钢管立柱\n3、规格尺寸：Φ89×4mm×4300mm\n4、基础、垫层材料品种、厚度：C20素砼垫层，C25商品混凝土基础\n5、油漆品种：喷涂白色环氧富锌漆2层\n6、接地地级：热镀锌角钢接地极∠50*50*5，L=2500mm\n7、土方：土方开挖回填，余方运到指定地点\n8、结构及做法：按设计图纸\n9、综合考虑按图纸、规范、招标文件要求而实施、完成这项工程的一切有关费用","按竣工图图示尺寸且验收合格为准","/","根",3,1031.9,{"v":3095.7,"d":"3095.70"}]
[19,"标杆（φ89*4*4326mm）","1、类型：单柱式标志杆\n2、材质：钢管立柱\n3、规格尺寸：Φ89×4mm×4326mm\n4、基础、垫层材料品种、厚度：C20素砼垫层，C25商品混凝土基础\n5、油漆品种：喷涂白色环氧富锌漆2层\n6、接地地级：热镀锌角钢接地极∠50*50*5，L=2500mm\n7、土方：土方开挖回填，余方运到指定地点\n8、结构及做法：按设计图纸\n9、综合考虑按图纸、规范、招标文件要求而实施、完成这项工程的一切有关费用","按竣工图图示尺寸且验收合格为准","/","根",2,941.68,1883.36]
[20,"标杆（φ76*3*2309mm）","1、类型：单柱式标志杆\n2、材质：铝合金立柱\n3、规格尺寸：Φ76×3mm×2309mm\n4、基础、垫层材料品种、厚度：C20素砼垫层，C25商品混凝土基础\n5、油漆品种：喷涂白色环氧富锌漆2层\n6、接地地级：热镀锌角钢接地极∠50*50*5，L=2500mm\n7、土方：土方开挖回填，余方运到指定地点\n8、结构及做法：按设计图纸\n9、综合考虑按图纸、规范、招标文件要求而实施、完成这项工程的一切有关费用","按竣工图图示尺寸且验收合格为准","/","根",22,899.48,19788.56]
[null,"警示桩","",null,null,"","",""]
[21,"警示柱","1、材质：镀锌钢管、贴反光膜\n2、类型：警示柱\n3、规格、型号：Φ140，高1200mm\n4、基础：C20商品混凝土\n5、土方：土方开挖回填，余方运到指定地点\n6、综合考虑按图纸、规范、招标文件要求而实施、完成这项工程的一切有关费用","按竣工图图示尺寸且验收合格为准","/","根",90,137.7,{"$f":"ROUND(H30*G30,2)","v":{"v":12393,"d":"12393.00"}}]
[22,"轮廓标","1、材质：合成树脂类、180mmX40mm的白色(或黄色)反射器、贴反光膜\n2、类型：轮廓标\n3、规格、型号：Φ120，高1050mm\n4、基础：C30商品混凝土\n5、综合考虑按图纸、规范、招标文件要求而实施、完成这项工程的一切有关费用","按竣工图图示尺寸且验收合格为准","/","根",15,110.23,1653.45]
[23,"垫层模板","1、垫层模板\n2、综合考虑按图纸、规范、招标文件要求而实施、完成这项工程的一切有关费用","按竣工图图示尺寸且验收合格为准","/","m2",28.8,54.31,1564.13]
[24,"基础模板","1、基础模板\n2、综合考虑按图纸、规范、招标文件要求而实施、完成这项工程的一切有关费用","按竣工图图示尺寸且验收合格为准","/","m2",240,54.31,{"v":13034.4,"d":"13034.40"}]
[25,"按系数计算的绿色施工安全防护措施费(包括绿色施工、临时设施、安全施工和用工实名管理)",null,"按竣工图图示尺寸且验收合格为准","/","项","1.000",11583.64,11583.64]
[26,"预算包干费",null,"按竣工图图示尺寸且验收合格为准","/","项","1.000",4212.23,4212.23]
[null,"【安监工程】","",null,null,"",""]
[null,"安监前端设备","",null,null,"",""]
[27,"监控杆（新建）高6.5m悬臂长3m、1m","1、名称：监控杆\n2、规格：高6.5m悬臂长3m、1m\n3、基础法兰板：519*519*10mm\n4、地脚螺栓：Ф32*840mm\n5、含混凝土基础\n6、综合考虑按图纸、规范、招标文件要求而实施、完成这项工程的一切有关费用","按竣工图图示尺寸且验收合格为准","/","套",4,4403.71,{"$f":"ROUND(H38*G38,2)","v":17614.84}]
[28,"监控杆（旧杆件及设备）","1、名称：监控杆（旧杆件及设备）\n2、混凝土基础浇筑\n3、综合考虑按图纸、规范、招标文件要求而实施、完成这项工程的一切有关费用","按竣工图图示尺寸且验收合格为准","/","套",4,1039.24,4156.96]
[29,"高清球机 分辨率400万以上星光级","1、名称：高清球机\n2、规格、参数：分辨率400万以上星光级，图像传感器不少于1/1.8\" CMOS；照度不低于彩色：0.0002Lux，黑白：0.0001Lux；支持≥37倍光学变倍；信噪比≥60dB；宽动态≥120db；H.265/H.264/MJPEG；人脸、人体抓拍率≥95%；支持ONVIF、GB/T 28181-2016、GA/T 1400-2017、GB35114-2017；采用开放架构，支待快速集成智能算法或应用APP；支持操作系统文件备份，当操作系统文件损坏或异常时，设备重启后仍可正常运行；具有安全启动设置选项，具有在启动的过程中，OS+应用软件逐级校验uboot的设置选项；支持同时多路高清码流输出，IP67；支持SVAC；\n3、综合考虑按图纸、规范、招标文件要求而实施、完","按竣工图图示尺寸且验收合格为准","/","台","9.000",2137.78,19240.02]
[30,"人脸抓拍枪型摄像机 分辨率400万以上星光级","1、名称：人脸抓拍枪型摄像机\n2、规格、参数：分辨率400万以上星光级，图像传感器不少于1/1.8\" CMOS；最低照度：彩色：0.0002Lux，黑白：0.0001Lux；焦距12-55mm；信噪比≥60dB；宽动态≥120db；H.265/H.264/MJPEG；人脸、人体抓拍率≥95%；支持ONVIF、GB/T 28181-2016、GA/T 1400-2017、GB35114-2017；采用开放架构，支待快速集成智能算法或应用APP；支持操作系统文件备份，当操作系统文件损坏或异常时，设备重启后仍可正常运行；具有网卡混杂模式检查、系统敏感文件检查、非法超级账户检测、僵尸网络检测、Rootkit检测、程序白名单、挖矿恶意进程检测等设置选项；支持同时多路高清码流输出，IP67；支持SVAC；\n3、综合考虑按图纸、规范、招标文件要求而实施、完成这项工程的一切有关费用","按竣工图图示尺寸且验收合格为准","/","台","18.000",962.47,17324.46]
[31,"设备箱500*400*300","1、名称：设备防水挂杆箱\n2、规格、参数：500*400*300 mm；全天候防风雨立式机箱。标准19”机架式设计。箱体材料选用304不锈钢，外壳防护等级达到 IP66等级；配电模块（5位）、接地模块（铜质）、防盗报警装置（须接入平台报警系统）、自动重合闸开关（含漏电保护）、配套安装附件及辅材\n3、综合考虑按图纸、规范、招标文件要求而实施、完成这项工程的一切有关费用","按竣工图图示尺寸且验收合格为准","/","台","4.000",995.8,{"v":3983.2,"d":"3983.20"}]
[32,"监控标志牌（正方形80×80cm，V类反光膜，3mm厚铝合金板）","1、名称：监控标志牌\n2、材质、规格：铝合金板、超强反光膜，背面加固铝滑槽\n3、综合考虑按图纸、规范、招标文件要求而实施、完成这项工程的一切有关费用","按竣工图图示尺寸且验收合格为准","/","块","13.000",516.77,6718.01]
[null,"安监传输系统","",null,null,"","",""]
[33,"六类网线","1、名称：六类网线\n2、规格、参数：结构：UTP；对数：4对；AWG 23AVG；导体直径：0.565mm\n3、综合考虑按图纸、规范、招标文件要求而实施、完成这项工程的一切有关费用","按竣工图图示尺寸且验收合格为准","/","m","140.000",3.94,{"$f":"ROUND(H45*G45,2)","v":{"v":551.6,"d":"551.60"}}]
[34,"光纤收发器","1、名称：光纤收发器\n2、规格、参数：2个1000Mbps LC光纤接口，8个100Mbps/1000Mbps自适应RJ45口，支持两路继电器输出，支持电源、端口、温度告警，单模单纤传输，最远传输距离20公里；包含配套安装附件及辅材\n3、综合考虑按图纸、规范、招标文件要求而实施、完成这项工程的一切有关费用","按竣工图图示尺寸且验收合格为准","/","台","4.000",348.29,1393.16]
[35,"光缆终端盒（4口）/光纤连接盘（LIU）","1、名称：光缆终端盒（4口）\n2、规格、参数：外壳应有用于将光缆金属构件高压防护接地的引出装置。 内部构件应包括以下部分： 支撑架：内部结构的主体，用于内部结构的支撑；熔纤盘：用于有顺序地存放光纤接头（及其保护件）和余留光纤，可余留光纤的长度不小于 1.6m, 余留光纤盘放的曲率半径应不小于37.5mm\n3、综合考虑按图纸、规范、招标文件要求而实施、完成这项工程的一切有关费用","按竣工图图示尺寸且验收合格为准","/","个","4.000",123.06,492.24]
[36,"室外光纤 6芯","1、名称:室外光纤\n2、规格:6芯\n3、综合考虑按图纸、规范、招标文件要求而实施、完成这项工程的一切有关费用","按竣工图图示尺寸且验收合格为准","/","m","8104.100",9.58,77637.28]
[37,"光缆终端盒（16口）/ODF光纤配线架","1、名称:光缆终端盒 16口\n2、规格:外壳应有用于将光缆金属构件高压防护接地的引出装置。 内部构件应包括以下部分： 支撑架：内部结构的主体，用于内部结构的支撑；熔纤盘：用于有顺序地存放光纤接头（及其保护件）和余留光纤，可余留光纤的长度不小于 1.6m, 余留光纤盘放的曲率半径应不小于37.6mm\n3、综合考虑按图纸、规范、招标文件要求而实施、完成这项工程的一切有关费用","按竣工图图示尺寸且验收合格为准","/","个","2.000",306.62,613.24]
[38,"电缆保护管φ110PVC","1、名称:电缆保护管\n2、材质、规格:φ110PVC管\n3、敷设方式:埋地敷设\n4、综合考虑按图纸、规范、招标文件要求而实施、完成这项工程的一切有关费用","按竣工图图示尺寸且验收合格为准","/","m","3573.500",28.25,100951.38]
[39,"镀锌钢管 DN100*4","1、名称:电缆保护管\n2、材质、规格:DN100*4镀锌钢管\n3、敷设方式:埋地敷设\n4、综合考虑按图纸、规范、招标文件要求而实施、完成这项工程的一切有关费用","按竣工图图示尺寸且验收合格为准","/","m","828.800",106.02,87869.38]
[40,"PVC排水管 φ110","1、名称:排水管\n2、规格:PVC排水管 φ110\n3、综合考虑按图纸、规范、招标文件要求而实施、完成这项工程的一切有关费用","按竣工图图示尺寸且验收合格为准","/","m","430.000",28.46,{"v":12237.8,"d":"12237.80"}]
[41,"安监汇聚箱","1、名称：安监汇聚箱\n2、规格：600*600*1200\n3、含配套设备，箱体材料选用304不锈钢，箱体外壳防护等级达到IP66等级\n4、综合考虑按图纸、规范、招标文件要求而实施、完成这项工程的一切有关费用","按竣工图图示尺寸且验收合格为准","/","个","2.000",2209.53,4419.06]
[42,"安监汇聚箱基础","1、机柜基础：C25混凝土\n2、φ110PE管\n3、综合考虑按图纸、规范、招标文件要求而实施、完成这项工程的一切有关费用","按竣工图图示尺寸且验收合格为准","/","个",2,266.03,532.06]
[43,"挖沟槽土方（场内转运）","1、土壤类别：按地质勘察报告\n2、挖土深度：按现场情况综合考虑\n3、运距:可利用到填方，场内转运运距由投标人自行考虑\n4、综合考虑按图纸、规范、招标文件要求而实施、完成这项工程的一切有关费用","按竣工图图示尺寸且验收合格为准","/","m3","42.080",17.73,746.08]
[44,"挖沟槽土方（利用方）","1、土壤类别:按地质勘察报告\n2、挖土深度:按现场情况综合考虑\n3、综合考虑按图纸、规范、招标文件要求而实施、完成这项工程的一切有关费用","按竣工图图示尺寸且验收合格为准","/","m3","843.591",8.85,7465.78]
[45,"回填土方（利用方）","1、密实度要求:按设计及规范要求\n2、填方材料品种:土方\n3、填方粒径要求:按设计及规范要求\n4、填方来源、运距:利用方\n5、综合考虑按图纸、规范、招标文件要求而实施、完成这项工程的一切有关费用","按竣工图图示尺寸且验收合格为准","/","m3","801.511",22.99,18426.74]
[null,"安监后端系统","",null,null,"","",""]
[46,"高性能视频存储企业硬盘 14TB","1、名称：高性能视频存储企业硬盘 \n2、规格、参数：14TB\n3、综合考虑按图纸、规范、招标文件要求而实施、完成这项工程的一切有关费用","按竣工图图示尺寸且验收合格为准","/","台","8.000",2307.73,{"$f":"ROUND(H59*G59,2)","v":18461.84}]
[47,"前端图像质量诊断软件","1、前端视频图像的在线状态、质量等 增补license 授权\n2、综合考虑按图纸、规范、招标文件要求而实施、完成这项工程的一切有关费用","按竣工图图示尺寸且验收合格为准","/","路","27.000",57.37,{"$f":"ROUND(H60*G60,2)","v":1548.99}]
[48,"安全设备准入授权","1、前端准入、安全密钥服务系统（国密） 、终端准入与安全管控 、网络防病毒系统， 增补license 授权\n2、综合考虑按图纸、规范、招标文件要求而实施、完成这项工程的一切有关费用","按竣工图图示尺寸且验收合格为准","/","路","27.000",44.13,{"$f":"ROUND(H61*G61,2)","v":1191.51}]
[49,"安全防范系统工程试运行","1、安全防范分系统调试 电视监控系统 摄像机(台)\n3、综合考虑按图纸、规范、招标文件要求而实施、完成这项工程的一切有关费用","按竣工图图示尺寸且验收合格为准","/","系统","1.000",3174.78,{"$f":"ROUND(H62*G62,2)","v":3174.78}]
[null,"基础配套","",null,null,"","",""]
[50,"II型单盖安监检查井（绿化带）","1、类型：II型单盖安监检查井\n2、井身材料：M10砌砖MUl0\n3、垫层、基础：C25混凝土\n4、井盖：加印\"珠海公安\"字样    \n5、综合考虑按图纸、规范、招标文件要求而实施、完成这项工程的一切有关费用","按竣工图图示尺寸且验收合格为准","/","座",43,1121.2,{"$f":"ROUND(H64*G64,2)","v":{"v":48211.6,"d":"48211.60"}}]
[51,"安监电表","1、名称:安监电表\n2、综合考虑按图纸、规范、招标文件要求而实施、完成这项工程的一切有关费用","按竣工图图示尺寸且验收合格为准","/","个","2.000",247.64,495.28]
[52,"电缆 YJV-1-5×10mm2","1、名称:电缆\n2、型号、规格:YJV-1-5*10mm2\n3、综合考虑按图纸、规范、招标文件要求而实施、完成这项工程的一切有关费用","按竣工图图示尺寸且验收合格为准","/","m","152.000",52.66,8004.32]
[53,"电缆 YJV-1-3×6mm2","1、名称:电缆\n2、型号、规格:YJV-1-3*6mm2\n3、综合考虑按图纸、规范、招标文件要求而实施、完成这项工程的一切有关费用","按竣工图图示尺寸且验收合格为准","/","m","2238.910",15.7,35150.89]
[54,"电源线 RVV3×2.5mm2","1、名称:配线\n2、规格:RVV3×2.5mm2\n3、综合考虑按图纸、规范、招标文件要求而实施、完成这项工程的一切有关费用","按竣工图图示尺寸且验收合格为准","/","m","140.000",8.58,{"v":1201.2,"d":"1201.20"}]
[55,"电源线 RVV2×1.5mm2","1、名称:配线\n2、规格:RVV2×1.5mm2\n3、综合考虑按图纸、规范、招标文件要求而实施、完成这项工程的一切有关费用","按竣工图图示尺寸且验收合格为准","/","m","140.000",3.87,{"v":541.8,"d":"541.80"}]
[null,"安监防雷接地","",null,null,"","",""]
[56,"信号防雷器","1、名称：信号/视频防雷器\n2、规格、参数：B2类SPD，短路电流75A（波形5/300μs），开路电压3KV\n3、综合考虑按图纸、规范、招标文件要求而实施、完成这项工程的一切有关费用","按竣工图图示尺寸且验收合格为准","/","个","27.000",103.42,{"$f":"ROUND(H71*G71,2)","v":2792.34}]
[57,"单相电源避雷器","1、名称：单相电源避雷器\n2、规格、参数：I级实验的产品 Iimp=20kA,10/350Us Up≤2.5KV\n3、综合考虑按图纸、规范、招标文件要求而实施、完成这项工程的一切有关费用","按竣工图图示尺寸且验收合格为准","/","个","27.000",256.18,6916.86]
[58,"三相电源避雷器","1、名称：三相电源避雷器\n2、规格、参数： Iimp=20kA,10/350Us Up≤2.5KV\n3、综合考虑按图纸、规范、招标文件要求而实施、完成这项工程的一切有关费用","按竣工图图示尺寸且验收合格为准","/","个","2.000",417.35,{"v":834.7,"d":"834.70"}]
[59,"接地系统，铜包钢接地极","1、名称：接地地极\n2、材质、规格：圆钢 φ14.2，螺栓组 M12*30\n3、综合考虑按图纸、规范、招标文件要求而实施、完成这项工程的一切有关费用","按竣工图图示尺寸且验收合格为准","/","组","150.000",53.15,{"v":7972.5,"d":"7972.50"}]
[60,"50mm2铜缆线(接地）","1、名称:接地引线\n2、规格:50mm2铜缆线\n3、综合考虑按图纸、规范、招标文件要求而实施、完成这项工程的一切有关费用","按竣工图图示尺寸且验收合格为准","/","m","300.000",59.85,{"v":17955,"d":"17955.00"}]
[61,"视频监控系统工程防雷处理","1、名称:接地装置调试\n2、类别:接地极调试\n3、综合考虑按图纸、规范、招标文件要求而实施、完成这项工程的一切有关费用","按竣工图图示尺寸且验收合格为准","/","系统","1.000",1848.07,1848.07]
[null,"拆除","",null,null,"","",""]
[62,"拆除现状安监","1、名称:保护性拆除监控杆\n2、尺寸:高6.5m悬臂长3m、1m\n3、综合考虑按图纸、规范、招标文件要求而实施、完成这项工程的一切有关费用","按竣工图图示尺寸且验收合格为准","/","套","10.000",154.53,{"$f":"ROUND(H78*G78,2)","v":{"v":1545.3,"d":"1545.30"}}]
[63,"垫层模板","1、混凝土基础垫层 木模","按竣工图图示尺寸且验收合格为准","/","m2","24.096",39.11,942.39]
[64,"基础模板","1、现浇混凝土模板制作、安装 混凝土基础","按竣工图图示尺寸且验收合格为准","/","m2","77.040",55.83,4301.14]
[65,"压顶模板","1、管、渠道及其他 小型构件 木模","按竣工图图示尺寸且验收合格为准","/","m2","25.456",85.76,2183.11]
[66,"预制盖板模板","1、管、渠道及其他 井盖板木模","按竣工图图示尺寸且验收合格为准","/","m3","1.264",245.7,310.56]
[67,"按系数计算的绿色施工安全防护措施费(包括绿色施工、临时设施、安全施工和用工实名管理)",null,"按竣工图图示尺寸且验收合格为准","/","项","1.000",62546.01,62546.01]
[68,"预算包干费",null,"按竣工图图示尺寸且验收合格为准","/","项","1.000",17505.62,17505.62]
[69,"不含税小计",{"$nulls":6},{"$f":"SUM(I6:I84)","v":884032.08}]
[70,"合计",{"$nulls":6},{"$f":"ROUND(I85*1.09,2)","v":963594.97}]

{"sheet":"定额计价程序表","index":3,"n_rows":101,"n_cols":4,"rows_kept":101,"merged":[[0,0,0,3],[23,0,23,3],[24,0,24,3],[25,0,25,3],[26,0,26,3],[49,0,49,3],[50,0,50,3],[51,0,51,3],[74,0,74,3],[75,0,75,3],[77,0,77,3],[100,0,100,3],[101,0,101,3]]}
["建筑与装饰工程定额计价程序表"]
["序号","费用名称","取费基数","费率(%)"]
["1","分部分项工程费","1.1+1.2"]
["1.1","定额分部分项工程费","1.1.1+1.1.2+1.1.3+1.1.4"]
["1.1.1","人工费","分部分项人工费"]
["1.1.2","材料费","分部分项材料费+分部分项主材费+分部分项设备费"]
["1.1.3","机具费","分部分项机具费"]
["1.1.4","管理费","分部分项管理费"]
[1.2,"利润","人工费+机具费",{"v":0.2,"d":"20.00%"}]
["2","措施项目费","2.1+2.2"]
["2.1","绿色施工安全防护措施费","人工费+机具费",{"v":0.19,"d":"19.00%"}]
["2.2","其他措施项目费"]
["3","其他项目费","3.1+3.2+3.3","只计算模板"]
[3.1,"总承包服务费",null,{"v":0,"d":"0.00%"}]
[3.2,"预算包干费","人工费+机具费",{"v":0.07,"d":"7.00%"}]
[3.3,"工程优质费",null,"按合同相关条款执行"]
["4","税前工程造价","1+2+3"]
[5,"下浮工程造价","4*浮动率","详见清单编制说明"]
[6,"增值税销项税额","5*税率",{"v":0.09,"d":"9.00%"}]
[7,"含税工程造价","5+6"]
[8,"独立费"]
[9,"甲供材料超领扣款",null,"按合同相关条款执行"]
[10,"工程造价总计","7+8-9"]
["注：1、如施工期间，政府相关费率调整，则上述税率相应调整："]
[]
[]
["安装工程定额计价程序表"]
["序号","费用名称","取费基数","费率(%)"]
["1","分部分项工程费","1.1+1.2"]
["1.1","定额分部分项工程费","1.1.1+1.1.2+1.1.3+1.1.4"]
["1.1.1","人工费","分部分项人工费"]
["1.1.2","材料费","分部分项材料费+分部分项主材费+分部分项设备费"]
["1.1.3","机具费","分部分项机具费"]
["1.1.4","管理费","分部分项管理费"]
[1.2,"利润","人工费+机具费",{"v":0.2,"d":"20.00%"}]
["2","措施项目费","2.1+2.2"]
["2.1","绿色施工安全防护措施费","人工费+机具费",{"v":0.3577,"d":"35.77%"}]
["2.2","其他措施项目费",null,"只计算模板"]
["3","其他项目费","3.1+3.2+3.3"]
[3.1,"总承包服务费",null,{"v":0,"d":"0.00%"}]
[3.2,"预算包干费","人工费+机具费",{"v":0.1,"d":"10.00%"}]
[3.3,"工程优质费",null,"按合同相关条款执行"]
["4","税前工程造价","1+2+3"]
[5,"下浮工程造价（甲供、甲定价材料除外）","4*浮动率","详见清单说明规定"]
[6,"增值税销项税额","5*税率",{"v":0.09,"d":"9.00%"}]
[7,"含税工程造价","5+6"]
[8,"独立费"]
[9,"甲供材料超领扣款",null,"按合同相关条款执行"]
[10,"工程造价总计","7+8-9"]
["注：1、如施工期间，政府相关费率调整，则上述税率相应调整："]
[]
["市政工程计价程序表"]
["序号","费用名称","计算基础","费率"]
["1","分部分项工程费","1.1+1.2"]
["1.1","定额分部分项工程费","1.1.1+1.1.2+1.1.3+1.1.4"]
["1.1.1","人工费","分部分项人工费"]
["1.1.2","材料费","分部分项材料费+分部分项主材费+分部分项设备费"]
["1.1.3","机具费","分部分项机具费"]
["1.1.4","管理费","分部分项管理费"]
[1.2,"利润","人工费+机具费",{"v":0.15,"d":"15.00%"}]
["2","措施项目费","2.1+2.2"]
["2.1","绿色施工安全防护措施费","人工费+机具费","单独场地平整工程4.35%；道路、管网工程16.5%；桥梁、隧道、水处理构筑物工程14.5%。"]
["2.2","其他措施项目费",null,"只计算模板"]
["3","其他项目费","3.1+3.2+3.3"]
[3.1,"总承包服务费",null,{"v":0,"d":"0.00%"}]
[3.2,"预算包干费","人工费+机具费",{"v":0.06,"d":"6.00%"}]
[3.3,"工程优质费",null,"按合同相关条款执行"]
["4","税前工程造价","1+2+3"]
[5,"下浮工程造价（甲供、甲定价材料除外）","4*浮动率","详见清单说明规定"]
[6,"增值税销项税额","5*税率",{"v":0.09,"d":"9.00%"}]
[7,"含税工程造价","5+6"]
[8,"独立费"]
[9,"甲供材料超领扣款",null,"按合同相关条款执行"]
[10,"工程造价总计","7+8-9"]
["注：1、如施工期间，政府相关费率调整，则上述税率相应调整："]
["2、分部分项工程总费用在300万元以内（含300万元）的项目绿色施工安全防护措施费按基准费率乘以1.2。"]
[]
["园林绿化工程计价程序表"]
["序号","费用名称","计算基础","费率"]
["1","分部分项工程费","1.1+1.2"]
["1.1","定额分部分项工程费","1.1.1+1.1.2+1.1.3+1.1.4"]
["1.1.1","人工费","分部分项人工费"]
["1.1.2","材料费","分部分项材料费+分部分项主材费+分部分项设备费"]
["1.1.3","机具费","分部分项机具费"]
["1.1.4","管理费","分部分项管理费"]
[1.2,"利润","人工费+机具费",{"v":0.15,"d":"15.00%"}]
["2","措施项目费","2.1+2.2"]
["2.1","绿色施工安全防护措施费","人工费+机具费",{"v":0.1,"d":"10.00%"}]
["2.2","其他措施项目费",null,"/"]
["3","其他项目费","3.1+3.2+3.3"]
[3.1,"总承包服务费",null,{"v":0,"d":"0.00%"}]
[3.2,"预算包干费","人工费+机具费",{"v":0.06,"d":"6.00%"}]
[3.3,"工程优质费",null,"按合同相关条款执行"]
["4","税前工程造价","1+2+3"]
[5,"下浮工程造价（甲供、甲定价材料除外）","4*浮动率","详见清单说明规定"]
[6,"增值税销项税额","5*税率",{"v":0.09,"d":"9.00%"}]
[7,"含税工程造价","5+6"]
[8,"独立费"]
[9,"甲供材料超领扣款",null,"按合同相关条款执行"]
[10,"工程造价总计","7+8-9"]
["注：1、如施工期间，政府相关费率调整，则上述税率相应调整："]

{"sheet":"安全文明施工措施费工作清单","index":4,"n_rows":96,"n_cols":4,"rows_kept":96,"merged":[[0,0,0,3],[1,0,2,0],[1,1,2,1],[1,2,2,2],[1,3,2,3],[3,1,3,3],[4,1,4,3],[7,1,7,3],[10,1,10,3],[11,1,11,3],[16,1,16,3],[18,1,18,3],[19,1,19,3],[21,1,21,3],[23,1,23,3],[24,1,24,3],[26,1,26,3],[30,0,30,3],[31,0,32,0],[31,1,32,1],[31,2,32,2],[31,3,32,3],[33,1,33,3],[34,1,34,3],[37,1,37,3],[40,1,40,3],[41,1,41,3],[43,1,43,3],[48,1,48,3],[50,1,50,3],[51,1,51,3],[53,1,53,3],[55,1,55,3],[56,1,56,3],[58,1,58,3],[60,1,60,3],[62,1,62,3],[66,0,66,3],[67,0,68,0],[67,1,68,1],[67,2,68,2],[67,3,68,3],[69,1,69,3],[70,1,70,3],[73,1,73,3],[76,1,76,3],[77,1,77,3],[79,1,79,3],[84,1,84,3],[86,1,86,3],[87,1,87,3],[89,1,89,3],[91,1,91,3],[92,1,92,3],[94,1,94,3]]}
["安全文明施工措施费工作清单-1"]
["序号","项目名称","项目特征描述","备注"]
[]
["一","临时设施"]
["（1）","项目办公场所"]
["1","项目部施工总承包办公室","1.按照项目部施工总承包方办公区域管理要求自主配备相应办公设施、用电设施；\n2.按照项目部施工总承包方办公区域管理要求管理办公室内环境、卫生及安全用电；\n3.分包方按照办公室室内建筑面积   元/m2/月价格按月缴纳办公室使用费用（包含办公室使用费、税金、水电费，不含室内外办公设施、用电设备）；\n4.分包方安装使用大功率电器设备需报施工总承包方项目部管理人员审批统一后方可使用；\n5.如在使用过程中，出现违反项目部施工总承包方有关办公区域管理的有关行为，项目部施工总承包方有权收回办公室使用权，并按约定租金的双倍处罚。其他综合考虑"]
["2","项目附近租赁办公室","1.按照施工总承包方的管理要求租赁、布置办公室，符合国家、地区及施工总承包方的卫生、健康、安全、消防等管理规定；\n2.其他：综合考虑"]
["（2）","项目工人生活场所"]
["1","项目部施工总承包方临时设施","1.按照项目部施工总承包方工地生活区域管理要求自主配备相应生活设施、用电设施；\n2.按照项目部施工总承包方工地生活区域管理要求管理宿舍室内环境、卫生及安全用电；\n3.分包方按照宿舍数量   元/间/月的价格按月缴纳宿舍使用费用（包含宿舍使用费、税金、水电费，不含室内外办公设施、用电设备）；\n4.分包方安装使用大功率电器设备需报施工总承包方项目部管理人员审批统一后方可使用；\n5.如在使用过程中，出现违反项目部施工总承包方有关工地生活区域管理的有关行为，项目部施工总承包方有权收回宿舍使用权，并按约定租金的双倍处罚。其他综合考虑"]
["2","项目附近租赁生活场所","1.按照施工总承包方的管理要求租赁、布置工人生活区，符合国家、地区及施工总承包方的卫生、健康、安全、消防等管理规定；\n2.其他：综合考虑"]
["二","安全施工"]
["（1）","安全措施的配备"]
["1","垂直方向交叉作业防护","设置防护隔离棚或其他设施满足施工总承包方安全管理的其他要求。"]
["2","高空作业防护","有悬挂安全带的悬索或其他设施；有操作平台；有上下的梯子或其他形式的通道及满足施工总承包方安全管理的其他要求。"]
["3","保健急救措施","保健医药用品、急救用品，水上水下作业救生设备器具及满足施工总承包方安全管理的其他要求。"]
["4","施工机具的防护","施工机具防雨、防风、防沙尘的防护措施以及及满足施工总承包方安全管理的其他要求。"]
["（2）","安全教育"]
["1","安全教育","对进场作业的工人进行安全生产教育，按要求对其进行施工工序的安全交底并形成教育、交底记录以及及满足施工总承包方安全管理的其他要求。"]
["三","文明施工"]
["（1）","标识标语"]
[1,"标识标语","按照施工总承包方的管理要求按时、按位置设置施工范围内的标识标语，具体作法参考正方建设《施工现场安全与文明施工标准化手册》2021版）。"]
["（2）","材料设备堆放"]
[1,"材料设备堆放","分包材料设备堆放的堆放、材料设备的标识标牌要符合施工总承包方的管理要求，符合国家、地区及施工总承包方的安全、消防及文明施工等管理规定"]
["四","环境保护"]
["（1）","清洁卫生"]
["1","清洁卫生","在生活区、办公区、施工区产生的生活、办公及施工的分包管理人员、作业人员须按照项目部施工总承包方的管理要求，满足国家、地区及施工总承包方的卫生、健康、清洁等管理规定。"]
["（2）","垃圾清理"]
["1","垃圾清理","生活区、办公区、施工区产生的生活、办公及施工垃圾应及时清理归堆运至项目部施工总承包方的规定集中堆放地，做到工完场清。"]
[]
[]
["安全文明施工措施费工作清单-2"]
["序号","项目名称","项目特征描述","备注"]
[]
["一","临时设施"]
["（1）","项目办公场所"]
["1","项目部施工总承包办公室","1.按照项目部施工总承包方办公区域管理要求自主配备相应办公设施、用电设施；\n2.按照项目部施工总承包方办公区域管理要求管理办公室内环境、卫生及安全用电；\n3.分包方按照办公室室内建筑面积   元/m2/月价格按月缴纳办公室使用费用（包含办公室使用费、税金、水电费，不含室内外办公设施、用电设备）；\n4.分包方安装使用大功率电器设备需报施工总承包方项目部管理人员审批统一后方可使用；\n5.如在使用过程中，出现违反项目部施工总承包方有关办公区域管理的有关行为，项目部施工总承包方有权收回办公室使用权，并按约定租金的双倍处罚。其他综合考虑"]
["2","项目附近租赁办公室","1.按照施工总承包方的管理要求租赁、布置办公室，符合国家、地区及施工总承包方的卫生、健康、安全、消防等管理规定；\n2.其他：综合考虑"]
["（2）","项目工人生活场所"]
["1","项目部施工总承包方临时设施","1.按照项目部施工总承包方工地生活区域管理要求自主配备相应生活设施、用电设施；\n2.按照项目部施工总承包方工地生活区域管理要求管理宿舍室内环境、卫生及安全用电；\n3.分包方按照宿舍数量   元/间/月的价格按月缴纳宿舍使用费用（包含宿舍使用费、税金、水电费，不含室内外办公设施、用电设备）；\n4.分包方安装使用大功率电器设备需报施工总承包方项目部管理人员审批统一后方可使用；\n5.如在使用过程中，出现违反项目部施工总承包方有关工地生活区域管理的有关行为，项目部施工总承包方有权收回宿舍使用权，并按约定租金的双倍处罚。其他综合考虑"]
["2","项目附近租赁生活场所","1.按照施工总承包方的管理要求租赁、布置工人生活区，符合国家、地区及施工总承包方的卫生、健康、安全、消防等管理规定；\n2.其他：综合考虑"]
["二","安全施工"]
["（1）","临边洞口作业防护"]
["1","“四口”（楼梯口、电梯口、预留洞口、通道口）、“五临边”（沟、坑,槽和深基础周边；屋面周边；楼层周边；楼梯侧边；平台或阳台边）","分包施工范围内的“四口”“五临边”按照施工总承包方的管理要求设置，具体作法参考正方建设《施工现场安全与文明施工标准化手册》2021版）。"]
["（2）","安全措施的配备"]
["1","垂直方向交叉作业防护","设置防护隔离棚或其他设施满足施工总承包方安全管理的其他要求。"]
["2","高空作业防护","有悬挂安全带的悬索或其他设施；有操作平台；有上下的梯子或其他形式的通道及满足施工总承包方安全管理的其他要求。"]
["3","保健急救措施","保健医药用品、急救用品，水上水下作业救生设备器具及满足施工总承包方安全管理的其他要求。"]
["4","施工机具的防护","施工机具防雨、防风、防沙尘的防护措施以及及满足施工总承包方安全管理的其他要求。"]
["（3）","安全教育"]
["1","安全教育","对进场作业的工人进行安全生产教育，按要求对其进行施工工序的安全交底并形成教育、交底记录以及及满足施工总承包方安全管理的其他要求。"]
["三","文明施工"]
["（1）","标识标语"]
[1,"标识标语","按照施工总承包方的管理要求按时、按位置设置施工范围内的标识标语，具体作法参考正方建设《施工现场安全与文明施工标准化手册》2021版）。"]
["（2）","材料设备堆放"]
[1,"材料设备堆放","分包材料设备堆放的堆放、材料设备的标识标牌要符合施工总承包方的管理要求，符合国家、地区及施工总承包方的安全、消防及文明施工等管理规定"]
["四","环境保护"]
["（1）","清洁卫生"]
["1","清洁卫生","在生活区、办公区、施工区产生的生活、办公及施工的分包管理人员、作业人员须按照项目部施工总承包方的管理要求，满足国家、地区及施工总承包方的卫生、健康、清洁等管理规定。"]
["（2）","垃圾清理"]
["1","垃圾清理","生活区、办公区、施工区产生的生活、办公及施工垃圾应及时清理归堆运至项目部施工总承包方的规定集中堆放地，做到工完场清。"]
["（3）","裸露场地覆盖"]
["1","绿网覆盖（含绿网）","按照项目部施工总承包方的管理要求对裸露土石方场地进行覆盖，具体作法参考正方建设《施工现场安全与文明施工标准化手册》2021版，符合国家、地区及施工总承包方的防尘、环境保护等管理规定。"]
["（4）","土方施工机械管理"]
["1","土方施工机械管理","按照项目部施工总承包方的管理要求对土方施工机械进行管理，包括不限于施工场区内、土方施工机械运输沿途的降尘及环境保护管理，符合国家、地区及施工总承包方的防尘、环境保护等管理规定。"]
[]
[]
["安全文明施工措施费工作清单-3"]
["序号","项目名称","项目特征描述","备注"]
[]
["一","临时设施"]
["（1）","项目办公场所"]
["1","项目部施工总承包办公室","1.按照项目部施工总承包方办公区域管理要求自主配备相应办公设施、用电设施；\n2.按照项目部施工总承包方办公区域管理要求管理办公室内环境、卫生及安全用电；\n3.分包方按照办公室室内建筑面积   元/m2/月价格按月缴纳办公室使用费用（包含办公室使用费、税金、水电费，不含室内外办公设施、用电设备）；\n4.分包方安装使用大功率电器设备需报施工总承包方项目部管理人员审批统一后方可使用；\n5.如在使用过程中，出现违反项目部施工总承包方有关办公区域管理的有关行为，项目部施工总承包方有权收回办公室使用权，并按约定租金的双倍处罚。其他综合考虑"]
["2","项目附近租赁办公室","1.按照施工总承包方的管理要求租赁、布置办公室，符合国家、地区及施工总承包方的卫生、健康、安全、消防等管理规定；\n2.其他：综合考虑"]
["（2）","项目工人生活场所"]
["1","项目部施工总承包方临时设施","1.按照项目部施工总承包方工地生活区域管理要求自主配备相应生活设施、用电设施；\n2.按照项目部施工总承包方工地生活区域管理要求管理宿舍室内环境、卫生及安全用电；\n3.分包方按照宿舍数量   元/间/月的价格按月缴纳宿舍使用费用（包含宿舍使用费、税金、水电费，不含室内外办公设施、用电设备）；\n4.分包方安装使用大功率电器设备需报施工总承包方项目部管理人员审批统一后方可使用；\n5.如在使用过程中，出现违反项目部施工总承包方有关工地生活区域管理的有关行为，项目部施工总承包方有权收回宿舍使用权，并按约定租金的双倍处罚。其他综合考虑"]
["2","项目附近租赁生活场所","1.按照施工总承包方的管理要求租赁、布置工人生活区，符合国家、地区及施工总承包方的卫生、健康、安全、消防等管理规定；\n2.其他：综合考虑"]
["二","安全施工"]
["（1）","临边洞口作业防护"]
["1","“四口”（楼梯口、电梯口、预留洞口、通道口）、“五临边”（沟、坑,槽和深基础周边；屋面周边；楼层周边；楼梯侧边；平台或阳台边）","分包施工范围内的“四口”“五临边”按照施工总承包方的管理要求设置，具体作法参考正方建设《施工现场安全与文明施工标准化手册》2021版）。"]
["（2）","安全措施的配备"]
["1","垂直方向交叉作业防护","设置防护隔离棚或其他设施满足施工总承包方安全管理的其他要求。"]
["2","高空作业防护","有悬挂安全带的悬索或其他设施；有操作平台；有上下的梯子或其他形式的通道及满足施工总承包方安全管理的其他要求。"]
["3","保健急救措施","保健医药用品、急救用品，水上水下作业救生设备器具及满足施工总承包方安全管理的其他要求。"]
["4","施工机具的防护","施工机具防雨、防风、防沙尘的防护措施以及及满足施工总承包方安全管理的其他要求。"]
["（3）","安全教育"]
["1","安全教育","对进场作业的工人进行安全生产教育，按要求对其进行施工工序的安全交底并形成教育、交底记录以及及满足施工总承包方安全管理的其他要求。"]
["三","文明施工"]
["（1）","标识标语"]
[1,"标识标语","按照施工总承包方的管理要求按时、按位置设置施工范围内的标识标语，具体作法参考正方建设《施工现场安全与文明施工标准化手册》2021版）。"]
["（2）","材料设备堆放"]
[1,"材料设备堆放","分包材料设备堆放的堆放、材料设备的标识标牌要符合施工总承包方的管理要求，符合国家、地区及施工总承包方的安全、消防及文明施工等管理规定"]
["四","环境保护"]
["（1）","清洁卫生"]
["1","清洁卫生","在生活区、办公区、施工区产生的生活、办公及施工的分包管理人员、作业人员须按照项目部施工总承包方的管理要求，满足国家、地区及施工总承包方的卫生、健康、清洁等管理规定。"]
["（2）","垃圾清理"]
["1","垃圾清理","生活区、办公区、施工区产生的生活、办公及施工垃圾应及时清理归堆运至项目部施工总承包方的规定集中堆放地，做到工完场清。"]